[Event "Early-Titled-Tuesday-Blitz-August-29-2023"]
[Site "Chess.com"]
[Date "2023.08.29"]
[Round "11"]
[White "NovikovaGalina"]
[Black "Miguelitro69"]
[Result "1-0"]
[WhiteElo "2397"]
[BlackElo "2289"]
[TimeControl "180+1"]
[EndTime "9:58:45 PDT"]
[Termination "NovikovaGalina won by checkmate"]

1. e4 {[%clk 0:03:00.9]} 1... c5 {[%clk 0:03:00.3]} 2. Nf3 {[%clk 0:03:00.7]}
2... Nc6 {[%clk 0:03:00.8]} 3. d4 {[%clk 0:03:01.2]} 3... cxd4 {[%clk
0:03:01.7]} 4. Nxd4 {[%clk 0:03:01.2]} 4... g6 {[%clk 0:03:02.4]} 5. Nc3 {[%clk
0:03:01.3]} 5... Bg7 {[%clk 0:03:02.2]} 6. Be3 {[%clk 0:03:01.5]} 6... Nf6
{[%clk 0:03:02.4]} 7. Nxc6 {[%clk 0:03:02.2]} 7... bxc6 {[%clk 0:03:02.1]} 8. e5
{[%clk 0:03:02.8]} 8... Ng8 {[%clk 0:03:02]} 9. Bd4 {[%clk 0:03:03.5]} 9... Nh6
{[%clk 0:02:51.2]} 10. e6 {[%clk 0:03:01.1]} 10... O-O {[%clk 0:02:42.3]} 11.
Bxg7 {[%clk 0:03:01.6]} 11... Kxg7 {[%clk 0:02:42.6]} 12. exd7 {[%clk
0:03:02.5]} 12... Qxd7 {[%clk 0:02:40.9]} 13. Qxd7 {[%clk 0:03:03]} 13... Bxd7
{[%clk 0:02:41.7]} 14. O-O-O {[%clk 0:03:03.3]} 14... Be6 {[%clk 0:02:40.5]} 15.
Be2 {[%clk 0:03:04]} 15... Rfd8 {[%clk 0:02:37]} 16. Bf3 {[%clk 0:03:01.2]}
16... Rdc8 {[%clk 0:02:23.5]} 17. Ne4 {[%clk 0:02:57.3]} 17... Bd5 {[%clk
0:02:17.8]} 18. b3 {[%clk 0:02:56.6]} 18... e5 {[%clk 0:02:10.3]} 19. c4 {[%clk
0:02:55.9]} 19... Bxe4 {[%clk 0:02:10.1]} 20. Bxe4 {[%clk 0:02:56.8]} 20... f5
{[%clk 0:02:10]} 21. Rd7+ {[%clk 0:02:55]} 21... Kf6 {[%clk 0:02:07.6]} 22. Bf3
{[%clk 0:02:50.8]} 22... e4 {[%clk 0:02:06.1]} 23. Be2 {[%clk 0:02:50]} 23...
Nf7 {[%clk 0:02:04.6]} 24. c5 {[%clk 0:02:44.5]} 24... Ke6 {[%clk 0:02:02.7]}
25. Rhd1 {[%clk 0:02:42.5]} 25... Ne5 {[%clk 0:01:51.3]} 26. R1d6# {[%clk
0:02:40.4]} 1-0

[Event "Early-Titled-Tuesday-Blitz-August-29-2023"]
[Site "Chess.com"]
[Date "2023.08.29"]
[Round "11"]
[White "FeketeBarika"]
[Black "DeArron_Fox"]
[Result "0-1"]
[WhiteElo "2347"]
[BlackElo "2475"]
[TimeControl "180+1"]
[EndTime "9:59:06 PDT"]
[Termination "DeArron_Fox won by resignation"]

1. d4 {[%clk 0:02:42.1]} 1... d5 {[%clk 0:02:59.1]} 2. Nf3 {[%clk 0:02:42.1]}
2... Nf6 {[%clk 0:02:54.4]} 3. g3 {[%clk 0:02:42.4]} 3... Bf5 {[%clk 0:02:53.7]}
4. Bg2 {[%clk 0:02:42.6]} 4... e6 {[%clk 0:02:51.7]} 5. O-O {[%clk 0:02:41.4]}
5... c6 {[%clk 0:02:51.5]} 6. Nh4 {[%clk 0:02:40]} 6... Bg4 {[%clk 0:02:46.8]}
7. h3 {[%clk 0:02:39.1]} 7... Bh5 {[%clk 0:02:47]} 8. c4 {[%clk 0:02:34.9]} 8...
Nbd7 {[%clk 0:02:36.9]} 9. b3 {[%clk 0:02:30.4]} 9... Bd6 {[%clk 0:02:33.6]} 10.
Nc3 {[%clk 0:02:27.6]} 10... a6 {[%clk 0:02:25.3]} 11. a4 {[%clk 0:02:23.2]}
11... O-O {[%clk 0:02:21.3]} 12. f4 {[%clk 0:02:23.6]} 12... c5 {[%clk
0:01:39.8]} 13. e3 {[%clk 0:02:19.7]} 13... Bxd1 {[%clk 0:01:23.5]} 0-1

[Event "Early-Titled-Tuesday-Blitz-August-29-2023"]
[Site "Chess.com"]
[Date "2023.08.29"]
[Round "11"]
[White "tk22h"]
[Black "valemava"]
[Result "1-0"]
[WhiteElo "2416"]
[BlackElo "2318"]
[TimeControl "180+1"]
[EndTime "9:59:12 PDT"]
[Termination "tk22h won by checkmate"]

1. c4 {[%clk 0:02:59.6]} 1... c6 {[%clk 0:02:59.3]} 2. e4 {[%clk 0:02:58.9]}
2... Qa5 {[%clk 0:02:57.5]} 3. Nc3 {[%clk 0:02:58]} 3... a6 {[%clk 0:02:57.3]}
4. d4 {[%clk 0:02:48.1]} 4... b5 {[%clk 0:02:57.3]} 5. Bd2 {[%clk 0:02:47.8]}
5... b4 {[%clk 0:02:57.1]} 6. Nce2 {[%clk 0:02:46.1]} 6... e6 {[%clk 0:02:56.9]}
7. Ng3 {[%clk 0:02:45.6]} 7... d5 {[%clk 0:02:56.6]} 8. exd5 {[%clk 0:02:44.3]}
8... cxd5 {[%clk 0:02:57.5]} 9. Nf3 {[%clk 0:02:44.5]} 9... dxc4 {[%clk
0:02:56.8]} 10. Bxc4 {[%clk 0:02:43.9]} 10... Nf6 {[%clk 0:02:56.6]} 11. O-O
{[%clk 0:02:43.7]} 11... Bb7 {[%clk 0:02:56.7]} 12. a3 {[%clk 0:02:43.5]} 12...
Qb6 {[%clk 0:02:54.6]} 13. Qb3 {[%clk 0:02:40.7]} 13... a5 {[%clk 0:02:52]} 14.
axb4 {[%clk 0:02:39.3]} 14... axb4 {[%clk 0:02:51]} 15. Rxa8 {[%clk 0:02:38.4]}
15... Bxa8 {[%clk 0:02:51.9]} 16. Ne5 {[%clk 0:02:35.2]} 16... Bd5 {[%clk
0:02:16.8]} 17. Bxd5 {[%clk 0:02:27.1]} 17... Nxd5 {[%clk 0:02:16.2]} 18. Qa4+
{[%clk 0:02:26.7]} 18... Ke7 {[%clk 0:02:06.8]} 19. Re1 {[%clk 0:02:23.3]} 19...
f6 {[%clk 0:02:03.9]} 20. Nf5+ {[%clk 0:02:16.4]} 20... exf5 {[%clk 0:01:56.8]}
21. Nd7+ {[%clk 0:02:07.6]} 21... Qe6 {[%clk 0:01:52.1]} 22. Rxe6+ {[%clk
0:02:06.9]} 22... Kxe6 {[%clk 0:01:53]} 23. Nxb8 {[%clk 0:02:07.1]} 23... Bd6
{[%clk 0:01:52.9]} 24. Qd7# {[%clk 0:02:06.4]} 1-0

[Event "Early-Titled-Tuesday-Blitz-August-29-2023"]
[Site "Chess.com"]
[Date "2023.08.29"]
[Round "11"]
[White "DenLaz"]
[Black "igorkovalenko"]
[Result "1-0"]
[WhiteElo "3067"]
[BlackElo "2965"]
[TimeControl "180+1"]
[EndTime "9:59:24 PDT"]
[Termination "DenLaz won by resignation"]

1. d4 {[%clk 0:03:00.9]} 1... Nf6 {[%clk 0:02:59.9]} 2. c4 {[%clk 0:03:01.6]}
2... e6 {[%clk 0:02:59.4]} 3. Nf3 {[%clk 0:03:02.2]} 3... b6 {[%clk 0:02:59.2]}
4. g3 {[%clk 0:03:02.3]} 4... Ba6 {[%clk 0:02:59.1]} 5. b3 {[%clk 0:03:02.7]}
5... d5 {[%clk 0:02:59.1]} 6. Bg2 {[%clk 0:03:02.9]} 6... Bb4+ {[%clk
0:02:59.1]} 7. Bd2 {[%clk 0:03:03.1]} 7... Bd6 {[%clk 0:03:00]} 8. O-O {[%clk
0:03:00.4]} 8... Nbd7 {[%clk 0:03:00.3]} 9. cxd5 {[%clk 0:02:45.9]} 9... exd5
{[%clk 0:03:00.1]} 10. Nc3 {[%clk 0:02:46.4]} 10... O-O {[%clk 0:02:59.7]} 11.
Nh4 {[%clk 0:02:44.5]} 11... c6 {[%clk 0:02:56.9]} 12. Nf5 {[%clk 0:02:44.6]}
12... Bc7 {[%clk 0:02:50.8]} 13. Re1 {[%clk 0:02:42.1]} 13... Re8 {[%clk
0:02:50.3]} 14. e4 {[%clk 0:02:39.8]} 14... dxe4 {[%clk 0:02:47.4]} 15. Nxe4
{[%clk 0:02:39.2]} 15... Nxe4 {[%clk 0:02:43]} 16. Bxe4 {[%clk 0:02:38.2]} 16...
Rxe4 {[%clk 0:02:12.7]} 17. Rxe4 {[%clk 0:02:36.9]} 17... Nf6 {[%clk 0:02:13]}
18. Bg5 {[%clk 0:02:25.8]} 18... Qd7 {[%clk 0:02:04.1]} 19. Ne7+ {[%clk
0:02:20.6]} 19... Kh8 {[%clk 0:01:58.2]} 20. Bxf6 {[%clk 0:02:21.1]} 20... gxf6
{[%clk 0:01:58.2]} 21. Qf3 {[%clk 0:02:21.1]} 21... Qd6 {[%clk 0:01:58.1]} 22.
Rae1 {[%clk 0:02:15.3]} 22... Rf8 {[%clk 0:01:57.6]} 23. Nf5 {[%clk 0:02:12.2]}
23... Qd8 {[%clk 0:01:57.5]} 24. Qh5 {[%clk 0:02:08.2]} 24... Bc8 {[%clk
0:01:56.7]} 25. Rh4 {[%clk 0:02:07.3]} 1-0

[Event "Early-Titled-Tuesday-Blitz-August-29-2023"]
[Site "Chess.com"]
[Date "2023.08.29"]
[Round "11"]
[White "GMForgacs"]
[Black "Vaibhavraut99"]
[Result "0-1"]
[WhiteElo "2444"]
[BlackElo "2580"]
[TimeControl "180+1"]
[EndTime "10:00:38 PDT"]
[Termination "Vaibhavraut99 won by resignation"]

1. e4 {[%clk 0:03:00.9]} 1... c5 {[%clk 0:02:52.5]} 2. Nf3 {[%clk 0:03:00.2]}
2... d6 {[%clk 0:02:52.9]} 3. d4 {[%clk 0:03:01.1]} 3... cxd4 {[%clk 0:02:53.8]}
4. Nxd4 {[%clk 0:03:02]} 4... Nc6 {[%clk 0:02:54.3]} 5. c4 {[%clk 0:03:01.7]}
5... Nf6 {[%clk 0:02:54.4]} 6. Nc3 {[%clk 0:03:01.9]} 6... g6 {[%clk 0:02:55.1]}
7. Be3 {[%clk 0:03:00.6]} 7... Bg7 {[%clk 0:02:54.9]} 8. Qd2 {[%clk 0:03:00.1]}
8... Ng4 {[%clk 0:02:52.1]} 9. Nxc6 {[%clk 0:02:54.8]} 9... bxc6 {[%clk
0:02:53]} 10. Bd4 {[%clk 0:02:55.3]} 10... e5 {[%clk 0:02:51.3]} 11. Be3 {[%clk
0:02:52.6]} 11... Nxe3 {[%clk 0:02:51.7]} 12. Qxe3 {[%clk 0:02:53.5]} 12... h5
{[%clk 0:02:51.2]} 13. Be2 {[%clk 0:02:52]} 13... O-O {[%clk 0:02:50.9]} 14. O-O
{[%clk 0:02:52.6]} 14... Rb8 {[%clk 0:02:50]} 15. b3 {[%clk 0:02:52.2]} 15...
Qa5 {[%clk 0:02:45.4]} 16. Rad1 {[%clk 0:02:48.2]} 16... Rd8 {[%clk 0:02:45.6]}
17. c5 {[%clk 0:02:34.4]} 17... Be6 {[%clk 0:02:41.6]} 18. cxd6 {[%clk
0:02:24.7]} 18... Bf8 {[%clk 0:02:38.1]} 19. Rd2 {[%clk 0:01:55.1]} 19... Rxd6
{[%clk 0:02:33.1]} 20. Rxd6 {[%clk 0:01:45.3]} 20... Bxd6 {[%clk 0:02:34]} 21.
Na4 {[%clk 0:01:45.3]} 21... Bf8 {[%clk 0:02:26.9]} 22. Rd1 {[%clk 0:01:44]}
22... Rd8 {[%clk 0:02:27]} 23. Rxd8 {[%clk 0:01:42.7]} 23... Qxd8 {[%clk
0:02:27.9]} 24. Qxa7 {[%clk 0:01:36.9]} 24... Qd2 {[%clk 0:02:27.4]} 25. Qe3
{[%clk 0:01:36.3]} 25... Qxa2 {[%clk 0:02:25.3]} 26. Bd1 {[%clk 0:01:05]} 26...
Qb1 {[%clk 0:02:21.5]} 27. Nc3 {[%clk 0:01:05.1]} 27... Qa1 {[%clk 0:02:17.9]}
28. h3 {[%clk 0:00:49.3]} 28... Bb4 {[%clk 0:02:16.6]} 0-1

[Event "Early-Titled-Tuesday-Blitz-August-29-2023"]
[Site "Chess.com"]
[Date "2023.08.29"]
[Round "11"]
[White "Road2GM3000"]
[Black "amanjazu"]
[Result "0-1"]
[WhiteElo "2416"]
[BlackElo "2343"]
[TimeControl "180+1"]
[EndTime "10:00:53 PDT"]
[Termination "amanjazu won by checkmate"]

1. d4 {[%clk 0:03:00.9]} 1... f5 {[%clk 0:02:56.2]} 2. c4 {[%clk 0:03:00.5]}
2... Nf6 {[%clk 0:02:56]} 3. Nc3 {[%clk 0:03:00.8]} 3... g6 {[%clk 0:02:56.3]}
4. Nf3 {[%clk 0:03:01.7]} 4... Bg7 {[%clk 0:02:56.9]} 5. g3 {[%clk 0:03:02.6]}
5... O-O {[%clk 0:02:57.5]} 6. Bg2 {[%clk 0:03:03.5]} 6... d6 {[%clk 0:02:58]}
7. O-O {[%clk 0:03:03.7]} 7... Qe8 {[%clk 0:02:58.4]} 8. d5 {[%clk 0:03:03.9]}
8... Na6 {[%clk 0:02:54.5]} 9. Nd4 {[%clk 0:03:04.2]} 9... Bd7 {[%clk
0:02:54.4]} 10. e4 {[%clk 0:03:03.6]} 10... fxe4 {[%clk 0:02:50.8]} 11. Nxe4
{[%clk 0:03:04.5]} 11... Nxe4 {[%clk 0:02:51.3]} 12. Bxe4 {[%clk 0:03:05.4]}
12... Bh3 {[%clk 0:02:43.5]} 13. Re1 {[%clk 0:03:04.9]} 13... Qf7 {[%clk
0:02:38.9]} 14. Be3 {[%clk 0:02:52.4]} 14... Nc5 {[%clk 0:02:32.1]} 15. Bc2
{[%clk 0:02:45.8]} 15... e5 {[%clk 0:02:10]} 16. dxe6 {[%clk 0:02:45.4]} 16...
Nxe6 {[%clk 0:02:10.1]} 17. Nxe6 {[%clk 0:02:43.9]} 17... Bxe6 {[%clk
0:02:10.3]} 18. b3 {[%clk 0:02:27.7]} 18... Rae8 {[%clk 0:01:23.8]} 19. Bd4
{[%clk 0:02:24.9]} 19... c5 {[%clk 0:01:00.9]} 20. Bxg7 {[%clk 0:02:16.3]} 20...
Qxf2+ {[%clk 0:00:59.7]} 21. Kh1 {[%clk 0:02:12.4]} 21... Kxg7 {[%clk
0:00:53.8]} 22. Be4 {[%clk 0:01:59]} 22... Bh3 {[%clk 0:00:49.4]} 23. Qd5 {[%clk
0:01:46.1]} 23... Bg2+ {[%clk 0:00:44.3]} 24. Bxg2 {[%clk 0:01:40.1]} 24...
Rxe1+ {[%clk 0:00:45.2]} 25. Rxe1 {[%clk 0:01:40.6]} 25... Qxe1+ {[%clk
0:00:45.6]} 26. Bf1 {[%clk 0:01:41.5]} 26... Qxf1# {[%clk 0:00:45.8]} 0-1

[Event "Early-Titled-Tuesday-Blitz-August-29-2023"]
[Site "Chess.com"]
[Date "2023.08.29"]
[Round "11"]
[White "DrDreBeats"]
[Black "jcibarra"]
[Result "1-0"]
[WhiteElo "2636"]
[BlackElo "2858"]
[TimeControl "180+1"]
[EndTime "10:01:07 PDT"]
[Termination "DrDreBeats won by resignation"]

1. e4 {[%clk 0:02:30.9]} 1... d5 {[%clk 0:02:59.3]} 2. exd5 {[%clk 0:02:30.8]}
2... Qxd5 {[%clk 0:03:00.2]} 3. Nc3 {[%clk 0:02:31.6]} 3... Qd6 {[%clk
0:03:00.9]} 4. d4 {[%clk 0:02:31.6]} 4... Nf6 {[%clk 0:03:01.5]} 5. Bd3 {[%clk
0:02:31.7]} 5... g6 {[%clk 0:03:01.6]} 6. Nge2 {[%clk 0:02:31.9]} 6... Bg7
{[%clk 0:03:02.3]} 7. Bf4 {[%clk 0:02:31.9]} 7... Qd8 {[%clk 0:03:03]} 8. Qd2
{[%clk 0:02:32.2]} 8... O-O {[%clk 0:03:03.7]} 9. O-O-O {[%clk 0:02:31.7]} 9...
a6 {[%clk 0:03:04.3]} 10. Bh6 {[%clk 0:02:31.5]} 10... b5 {[%clk 0:02:55.9]} 11.
f3 {[%clk 0:02:31.8]} 11... c5 {[%clk 0:02:51.5]} 12. dxc5 {[%clk 0:02:30.2]}
12... Qc7 {[%clk 0:02:51.2]} 13. h4 {[%clk 0:02:29.5]} 13... Nbd7 {[%clk
0:02:48.6]} 14. h5 {[%clk 0:02:28.7]} 14... Nxc5 {[%clk 0:02:48.7]} 15. Bxg7
{[%clk 0:02:28.8]} 15... Kxg7 {[%clk 0:02:46.8]} 16. hxg6 {[%clk 0:02:29.1]}
16... fxg6 {[%clk 0:02:46.2]} 17. Qh6+ {[%clk 0:02:28.8]} 17... Kf7 {[%clk
0:02:46.6]} 18. Nd5 {[%clk 0:02:22.4]} 18... Nxd5 {[%clk 0:02:21.3]} 19. Qxh7+
{[%clk 0:02:21.6]} 19... Ke6 {[%clk 0:02:21.3]} 20. Qxg6+ {[%clk 0:02:18.9]}
20... Rf6 {[%clk 0:02:14]} 21. Qg8+ {[%clk 0:01:52.7]} 21... Kd6 {[%clk
0:02:13.8]} 22. Be4 {[%clk 0:01:52.1]} 22... Kc6 {[%clk 0:01:26.5]} 23. Qxd5+
{[%clk 0:01:47.8]} 23... Kb6 {[%clk 0:01:26.9]} 24. Qxa8 {[%clk 0:01:41.5]}
24... Ka5 {[%clk 0:01:17.7]} 25. Nc3 {[%clk 0:01:35.4]} 25... e6 {[%clk
0:01:08.7]} 26. Rh8 {[%clk 0:01:32.8]} 26... Bd7 {[%clk 0:01:01.1]} 27. Qd8
{[%clk 0:01:32.6]} 27... Qxd8 {[%clk 0:00:58.1]} 28. Rxd8 {[%clk 0:01:32.5]}
28... Rf7 {[%clk 0:00:58.9]} 29. a3 {[%clk 0:01:32]} 1-0

[Event "Early-Titled-Tuesday-Blitz-August-29-2023"]
[Site "Chess.com"]
[Date "2023.08.29"]
[Round "11"]
[White "Laico"]
[Black "DKmirl"]
[Result "1-0"]
[WhiteElo "2425"]
[BlackElo "2261"]
[TimeControl "180+1"]
[EndTime "10:01:08 PDT"]
[Termination "Laico won on time"]

1. e4 {[%clk 0:02:57]} 1... c5 {[%clk 0:02:59.9]} 2. Nc3 {[%clk 0:02:57.3]} 2...
Nc6 {[%clk 0:02:59.5]} 3. f4 {[%clk 0:02:57.8]} 3... g6 {[%clk 0:02:59.4]} 4.
Nf3 {[%clk 0:02:58.5]} 4... Bg7 {[%clk 0:02:59.6]} 5. Bb5 {[%clk 0:02:59.2]}
5... Nd4 {[%clk 0:02:59.9]} 6. O-O {[%clk 0:02:59.6]} 6... Nxb5 {[%clk
0:02:58.6]} 7. Nxb5 {[%clk 0:03:00.5]} 7... Nf6 {[%clk 0:02:55.4]} 8. d3 {[%clk
0:03:00.7]} 8... O-O {[%clk 0:02:55]} 9. Nc3 {[%clk 0:02:58.8]} 9... d6 {[%clk
0:02:52.9]} 10. Qe1 {[%clk 0:02:58.5]} 10... Rb8 {[%clk 0:02:50.4]} 11. Qh4
{[%clk 0:02:58.6]} 11... b5 {[%clk 0:02:50.2]} 12. f5 {[%clk 0:02:59.3]} 12...
b4 {[%clk 0:02:48.1]} 13. Ne2 {[%clk 0:02:59.3]} 13... Ba6 {[%clk 0:02:42.4]}
14. Bh6 {[%clk 0:02:58.9]} 14... c4 {[%clk 0:02:41.2]} 15. Nf4 {[%clk
0:02:57.9]} 15... cxd3 {[%clk 0:02:36.9]} 16. cxd3 {[%clk 0:02:58.8]} 16... Rc8
{[%clk 0:01:27.2]} 17. Ng5 {[%clk 0:02:57.5]} 17... Qb6+ {[%clk 0:01:11.2]} 18.
Kh1 {[%clk 0:02:57.1]} 18... Rc2 {[%clk 0:00:58.6]} 19. fxg6 {[%clk 0:02:53.2]}
19... hxg6 {[%clk 0:00:53.5]} 20. Bxg7 {[%clk 0:02:50]} 20... Kxg7 {[%clk
0:00:53.2]} 21. Nd5 {[%clk 0:02:50.3]} 21... Rh8 {[%clk 0:00:31.6]} 22. Qxh8+
{[%clk 0:02:49.4]} 22... Kxh8 {[%clk 0:00:31.8]} 23. Nxb6 {[%clk 0:02:49.3]}
23... axb6 {[%clk 0:00:32.7]} 24. e5 {[%clk 0:02:35.9]} 24... dxe5 {[%clk
0:00:26.4]} 25. Nxf7+ {[%clk 0:02:36.2]} 25... Kg7 {[%clk 0:00:25.4]} 26. Nxe5
{[%clk 0:02:37.1]} 26... Bb7 {[%clk 0:00:24.7]} 27. Rg1 {[%clk 0:02:31.5]} 27...
Rxb2 {[%clk 0:00:17.6]} 28. Nf3 {[%clk 0:02:22]} 28... Ng4 {[%clk 0:00:13.5]}
29. Rgb1 {[%clk 0:02:22]} 1-0

[Event "Early-Titled-Tuesday-Blitz-August-29-2023"]
[Site "Chess.com"]
[Date "2023.08.29"]
[Round "11"]
[White "Doomfist26"]
[Black "ljuks68"]
[Result "1-0"]
[WhiteElo "2600"]
[BlackElo "2462"]
[TimeControl "180+1"]
[EndTime "10:01:20 PDT"]
[Termination "Doomfist26 won on time"]

1. e4 {[%clk 0:03:00.9]} 1... e6 {[%clk 0:02:51.5]} 2. d4 {[%clk 0:02:59.7]}
2... d5 {[%clk 0:02:51.8]} 3. Nc3 {[%clk 0:03:00.5]} 3... Bb4 {[%clk 0:02:50.5]}
4. Qd3 {[%clk 0:03:00.9]} 4... Ne7 {[%clk 0:02:49.7]} 5. Ne2 {[%clk 0:02:48.6]}
5... b6 {[%clk 0:02:42.2]} 6. Qg3 {[%clk 0:02:41.7]} 6... O-O {[%clk 0:02:36.9]}
7. Bf4 {[%clk 0:02:41.4]} 7... Bd6 {[%clk 0:02:01.7]} 8. Bxd6 {[%clk 0:02:37.1]}
8... cxd6 {[%clk 0:01:56.6]} 9. exd5 {[%clk 0:02:34.9]} 9... exd5 {[%clk
0:01:56.3]} 10. O-O-O {[%clk 0:02:34.9]} 10... a6 {[%clk 0:01:05.4]} 11. Nf4
{[%clk 0:02:34.6]} 11... Bb7 {[%clk 0:01:05.6]} 12. Bd3 {[%clk 0:02:32.3]} 12...
b5 {[%clk 0:01:04.6]} 13. Nh5 {[%clk 0:02:30.2]} 13... Ng6 {[%clk 0:01:03.2]}
14. f4 {[%clk 0:02:30.8]} 14... f5 {[%clk 0:00:29.8]} 15. Qf3 {[%clk 0:02:20.6]}
15... Nh4 {[%clk 0:00:22.7]} 16. Qf2 {[%clk 0:02:18.4]} 16... Nc6 {[%clk
0:00:20.5]} 17. Nxd5 {[%clk 0:02:16.4]} 17... Na5 {[%clk 0:00:11]} 18. Ne3
{[%clk 0:02:16.3]} 18... Rc8 {[%clk 0:00:06.4]} 19. Kb1 {[%clk 0:02:15.2]} 19...
Nc4 {[%clk 0:00:06]} 20. Qg3 {[%clk 0:02:10.8]} 20... Ng6 {[%clk 0:00:04.9]} 21.
Nxf5 {[%clk 0:02:10.8]} 21... Qa5 {[%clk 0:00:02.7]} 22. Bxc4+ {[%clk
0:02:07.4]} 22... bxc4 {[%clk 0:00:02.4]} 23. Nxd6 {[%clk 0:02:07.1]} 23... c3
{[%clk 0:00:01.5]} 24. Nxc8 {[%clk 0:02:02.6]} 24... Rxc8 {[%clk 0:00:01.8]} 25.
Rd3 {[%clk 0:01:59.3]} 25... Qb4 {[%clk 0:00:01.7]} 26. Rxc3 {[%clk 0:01:59.5]}
1-0

[Event "Early-Titled-Tuesday-Blitz-August-29-2023"]
[Site "Chess.com"]
[Date "2023.08.29"]
[Round "11"]
[White "KorolDimitriy75"]
[Black "RIPOL"]
[Result "1-0"]
[WhiteElo "2362"]
[BlackElo "2419"]
[TimeControl "180+1"]
[EndTime "10:01:35 PDT"]
[Termination "KorolDimitriy75 won by resignation"]

1. d4 {[%clk 0:03:00.9]} 1... Nf6 {[%clk 0:02:59.1]} 2. c4 {[%clk 0:03:01.1]}
2... e6 {[%clk 0:02:59.1]} 3. Nc3 {[%clk 0:03:01.6]} 3... Bb4 {[%clk 0:02:58.3]}
4. Qc2 {[%clk 0:03:01.8]} 4... d5 {[%clk 0:02:56.6]} 5. cxd5 {[%clk 0:03:00.6]}
5... exd5 {[%clk 0:02:55.8]} 6. Bg5 {[%clk 0:03:00]} 6... h6 {[%clk 0:02:52.7]}
7. Bxf6 {[%clk 0:03:00.2]} 7... Qxf6 {[%clk 0:02:50]} 8. a3 {[%clk 0:03:00.7]}
8... Bxc3+ {[%clk 0:02:47.8]} 9. Qxc3 {[%clk 0:03:01.6]} 9... c6 {[%clk
0:02:47]} 10. e3 {[%clk 0:03:02.1]} 10... O-O {[%clk 0:02:46]} 11. Ne2 {[%clk
0:03:02.3]} 11... Nd7 {[%clk 0:02:42.3]} 12. Ng3 {[%clk 0:03:02.2]} 12... Nb6
{[%clk 0:02:36.3]} 13. Be2 {[%clk 0:03:01.7]} 13... Re8 {[%clk 0:02:34.5]} 14.
O-O {[%clk 0:03:00.9]} 14... a5 {[%clk 0:02:28.1]} 15. b4 {[%clk 0:02:57.6]}
15... axb4 {[%clk 0:02:14.5]} 16. axb4 {[%clk 0:02:58.5]} 16... Rxa1 {[%clk
0:02:13.6]} 17. Rxa1 {[%clk 0:02:59.4]} 17... Qd6 {[%clk 0:02:13]} 18. b5 {[%clk
0:02:32.1]} 18... Bd7 {[%clk 0:02:03.5]} 19. bxc6 {[%clk 0:02:20.6]} 19... Bxc6
{[%clk 0:01:56.6]} 20. Rb1 {[%clk 0:02:07.5]} 20... Nd7 {[%clk 0:01:43.4]} 21.
Bb5 {[%clk 0:02:00.7]} 21... Rc8 {[%clk 0:01:41.6]} 22. Qb3 {[%clk 0:01:34.8]}
22... g6 {[%clk 0:01:34.6]} 23. h3 {[%clk 0:01:29.9]} 23... h5 {[%clk
0:01:33.7]} 24. Ne2 {[%clk 0:01:22.2]} 24... Nf8 {[%clk 0:01:33]} 25. Bxc6
{[%clk 0:01:19.6]} 25... bxc6 {[%clk 0:01:31.6]} 26. Nf4 {[%clk 0:01:19.5]}
26... Ne6 {[%clk 0:01:28.8]} 27. Qb7 {[%clk 0:01:06.1]} 27... Rc7 {[%clk
0:01:05.5]} 28. Qb8+ {[%clk 0:01:05.2]} 28... Kg7 {[%clk 0:01:04.3]} 29. Nxe6+
{[%clk 0:01:00]} 29... fxe6 {[%clk 0:01:03.1]} 30. Rb7 {[%clk 0:00:52.9]} 1-0

[Event "Early-Titled-Tuesday-Blitz-August-29-2023"]
[Site "Chess.com"]
[Date "2023.08.29"]
[Round "11"]
[White "TC2304"]
[Black "TigranHH"]
[Result "1-0"]
[WhiteElo "2404"]
[BlackElo "2247"]
[TimeControl "180+1"]
[EndTime "10:01:39 PDT"]
[Termination "TC2304 won by resignation"]

1. c4 {[%clk 0:03:00.9]} 1... e5 {[%clk 0:02:57.3]} 2. Nc3 {[%clk 0:03:01.1]}
2... Nf6 {[%clk 0:02:56.7]} 3. g3 {[%clk 0:03:01.8]} 3... Nc6 {[%clk 0:02:55.3]}
4. Bg2 {[%clk 0:03:02.2]} 4... Bc5 {[%clk 0:02:55.8]} 5. e3 {[%clk 0:03:02.7]}
5... d6 {[%clk 0:02:55.5]} 6. Nge2 {[%clk 0:03:03.4]} 6... a6 {[%clk 0:02:55.7]}
7. O-O {[%clk 0:03:04.1]} 7... O-O {[%clk 0:02:55.4]} 8. a3 {[%clk 0:03:04.8]}
8... Re8 {[%clk 0:02:52.8]} 9. b4 {[%clk 0:03:04.5]} 9... Ba7 {[%clk 0:02:52.9]}
10. Bb2 {[%clk 0:03:05.1]} 10... Be6 {[%clk 0:02:49.3]} 11. d3 {[%clk
0:03:04.8]} 11... Qd7 {[%clk 0:02:47.9]} 12. Nd5 {[%clk 0:03:05.3]} 12... Bxd5
{[%clk 0:02:18]} 13. cxd5 {[%clk 0:03:06.2]} 13... Ne7 {[%clk 0:02:18.5]} 14. e4
{[%clk 0:02:56]} 14... c6 {[%clk 0:02:18.2]} 15. d4 {[%clk 0:02:51.8]} 15... Ng6
{[%clk 0:02:09.5]} 16. dxe5 {[%clk 0:02:45.5]} 16... Nxe5 {[%clk 0:02:08.6]} 17.
dxc6 {[%clk 0:02:40.6]} 17... bxc6 {[%clk 0:02:08.1]} 18. Rc1 {[%clk 0:02:38]}
18... Rad8 {[%clk 0:01:55.4]} 19. Bd4 {[%clk 0:02:36.5]} 19... d5 {[%clk
0:01:50.8]} 20. exd5 {[%clk 0:02:30.3]} 20... cxd5 {[%clk 0:01:43.3]} 21. Nf4
{[%clk 0:02:04.6]} 21... Ne4 {[%clk 0:01:20.4]} 22. Bxa7 {[%clk 0:01:50.3]}
22... Qxa7 {[%clk 0:01:17.5]} 23. Nxd5 {[%clk 0:01:50.3]} 23... Nd6 {[%clk
0:00:46.6]} 24. Re1 {[%clk 0:01:24.8]} 24... Ndc4 {[%clk 0:00:45.1]} 25. Qa4
{[%clk 0:01:02.2]} 25... Nd3 {[%clk 0:00:38]} 26. Qxe8+ {[%clk 0:01:00.4]} 1-0